fUST/lending_fUST_20241130
["ID","MTS","AMOUNT","RATE_DAILY","PERIOD"]
[343723962,1732924240119,-500.0,0.00027593,2]
[343723963,1732924240129,-500.0,0.00027593,2]
[343723964,1732924240140,-500.0,0.00027593,2]
[343723965,1732924240150,-500.0,0.00027593,2]
[343723966,1732924240160,-500.0,0.00027593,2]
[343723967,1732924240169,-500.0,0.00027593,2]
[343723968,1732924240179,-500.0,0.00027593,2]
[343723969,1732924240190,-500.0,0.00027593,2]
[343723970,1732924240199,-500.0,0.00027593,2]
[343723971,1732924240209,-500.0,0.00027593,2]
[343723972,1732924240220,-500.0,0.00027593,2]
[343723974,1732924240232,-500.0,0.00027593,2]
[343723976,1732924240242,-500.0,0.00027593,2]
[343723977,1732924240252,-500.0,0.00027593,2]
[343723978,1732924240263,-500.0,0.00027593,2]
[343723979,1732924240273,-224.25423977,0.00027593,2]
[343723980,1732924240282,-500.0,0.00027593,2]
[343723981,1732924240292,-500.0,0.00027593,2]
[343723982,1732924240302,-500.0,0.00027593,2]
[343723983,1732924240313,-633.62740446,0.00027593,2]
[343723984,1732924240322,-648.92919291,0.00027593,2]
[343723985,1732924240332,-500.0,0.00027593,2]
[343723986,1732924240341,-500.0,0.00027593,2]
[343723987,1732924240351,-500.0,0.00027593,2]
[343723989,1732924240360,-500.0,0.00027593,2]
[343723990,1732924240370,-500.0,0.00027593,2]
[343723992,1732924240379,-500.0,0.00027593,2]
[343723994,1732924240388,-500.0,0.00027593,2]
[343723995,1732924240398,-500.0,0.00027593,2]
[343723996,1732924240408,-568.37491101,0.00027594,2]
[343723997,1732924240547,-126.41622531,0.00027594,2]
[343723998,1732924240557,-175.49615453,0.00027594,2]
[343724004,1732924243383,-13.53477304,0.00027594,2]
[343724005,1732924243433,-612.10737645,0.00027594,2]
[343724019,1732924561434,163.282354,0.00013973,2]
[343724021,1732924694431,269.88,0.00026,30]
[343724022,1732924705079,300.0,0.0003,120]
[343724023,1732924830854,150.0,0.00029893,120]
[343724027,1732924929134,320.08,0.00030137,120]
[343724033,1732925181456,163.282354,0.00013973,2]
[343724034,1732925233129,-1674.29676997,0.000213,2]
[343724035,1732925233150,-250.77276895,0.00021952,2]
[343724036,1732925233171,-163.282354,0.00022759,2]
[343724037,1732925233193,-170.270994,0.00024212,2]
[343724038,1732925233214,-300.0,0.00024264,2]
[343724039,1732925233234,-300.0,0.00024264,2]
[343724040,1732925233255,-1303.0,0.00024264,2]
[343724041,1732925233276,-10544.19923227,0.00024265,2]
[343724042,1732925244110,-241.09386018,0.00024265,2]
[343724043,1732925250137,-168.0,0.00022,2]
[343724044,1732925250159,-584.14432277,0.00024265,2]
[343724048,1732925354103,-160.0,0.00022,2]
[343724051,1732925372092,-160.0,0.00023014,2]
[343724052,1732925372113,-300.0,0.00024264,2]
[343724053,1732925372133,-300.0,0.00024264,2]
[343724054,1732925372154,-210.31094295,0.00024265,2]
[343724055,1732925373160,-856.30074093,0.00024265,2]
[343724062,1732925432499,-390.24833483,0.00023782,2]
[343724063,1732925432509,-329.8082874,0.00024022,2]
[343724064,1732925432521,-300.0,0.00024264,2]
[343724065,1732925432531,-300.0,0.00024264,2]
[343724066,1732925432541,-127.55108777,0.00024264,2]
[343724162,1732925443539,-29.44891223,0.00024264,2]
[343724163,1732925443552,-5207.70405712,0.00024265,2]
[343724164,1732925443567,-5164.38226736,0.00024265,2]
[343724211,1732925452034,174.0,0.00022,2]
[343724212,1732925548930,167.0,0.00022,2]
[343724214,1732925799703,166.542569,0.00013973,2]
[343724226,1732926399592,172.923411,0.00013973,2]
[343724227,1732926431145,-413.29925429,0.0001906,2]
[343724229,1732926523287,470.0,0.00025,30]
[343724242,1732926550099,-454.43318697,0.00018869,2]
[343724243,1732926550121,-1260.99751568,0.0001906,2]
[343724244,1732926550141,-191.2468088,0.0001931,2]
[343724245,1732926550163,-250.0,0.00019468,2]
[343724246,1732926550184,-571.73850997,0.0001999,2]
[343724247,1732926550205,-300.0,0.00019999,2]
[343724248,1732926550228,-300.0,0.00019999,2]
[343724249,1732926550249,-654.0,0.0002,2]
[343724250,1732926550274,-651.0,0.0002,2]
[343724251,1732926550297,-651.0,0.0002,2]
[343724252,1732926550318,-651.0,0.0002,2]
[343724253,1732926550339,-3114.0,0.0002,2]
[343724254,1732926550361,-183.4748385,0.00020249,2]
[343724255,1732926550383,-166.542569,0.00020447,2]
[343724256,1732926550404,-24900.0,0.00021176,2]
[343724257,1732926550425,-321.84593739,0.00021215,2]
[343724266,1732926563156,-218.59255561,0.00021215,2]
[343724267,1732926563177,-2841.7103721,0.00021221,2]
[343724268,1732926563197,-152.0,0.00021375,2]
[343724269,1732926563219,-504.76032522,0.00021654,2]
[343724270,1732926563240,-170.2709948,0.00021654,2]
[343724271,1732926563260,-366.85966042,0.00021673,2]
[343724272,1732926563281,-500.0,0.00021673,2]
[343724273,1732926563301,-500.0,0.00021673,2]
[343724274,1732926563327,-500.0,0.00021673,2]
[343724275,1732926563364,-500.0,0.00021673,2]
[343724276,1732926563386,-500.0,0.00021676,2]
[343724277,1732926563408,-500.0,0.00021676,2]
[343724278,1732926563430,-500.0,0.00021676,2]
[343724279,1732926563453,-500.0,0.00021676,2]
[343724280,1732926563475,-209.56698811,0.00021676,2]
[343724281,1732926573109,-290.43301189,0.00021676,2]
[343724282,1732926573132,-500.0,0.00021676,2]
[343724283,1732926573154,-149.38698811,0.00021676,2]
[343724361,1732926635306,-513.3054647,0.00021673,2]
[343724362,1732926635316,-501.6241701,0.00021673,2]
[343724363,1732926635326,-500.0,0.00021673,2]
[343724364,1732926635336,-374.46851383,0.00021673,2]
[343724365,1732926635345,-291.56183589,0.00021673,2]
[343724366,1732926635355,-160.16915665,0.00021673,2]
[343724367,1732926635364,-159.15683555,0.00021673,2]
[343724368,1732926635375,-160.16517606,0.00021673,2]
[343724369,1732926635385,-345.10144811,0.00021673,2]
[343724370,1732926635395,-260.18506484,0.00021673,2]
[343724371,1732926635405,-499.90046306,0.00021673,2]
[343724372,1732926635416,-500.0,0.00021675,2]
[343724374,1732926635425,-500.0,0.00021675,2]
[343724376,1732926635434,-500.0,0.00021675,2]
[343724378,1732926635443,-500.0,0.00021675,2]
[343724381,1732926635453,-500.0,0.00021675,2]
[343724383,1732926635462,-500.0,0.00021675,2]
[343724385,1732926635472,-500.0,0.00021675,2]
[343724387,1732926635481,-500.0,0.00021675,2]
[343724389,1732926635491,-500.0,0.00021675,2]
[343724391,1732926635500,-500.0,0.00021675,2]
[343724393,1732926635510,-500.0,0.00021675,2]
[343724394,1732926635519,-500.0,0.00021675,2]
[343724395,1732926635528,-500.0,0.00021675,2]
[343724396,1732926635537,-500.0,0.00021675,2]
[343724398,1732926635547,-500.0,0.00021675,2]
[343724400,1732926635556,-455.50168324,0.00021675,2]
[343724434,1732926638952,-44.49831676,0.00021675,2]
[343724436,1732926638966,-500.0,0.00021675,2]
[343724437,1732926638976,-500.0,0.00021675,2]
[343724438,1732926638986,-500.0,0.00021675,2]
[343724440,1732926638996,-500.0,0.00021675,2]
[343724441,1732926639008,-500.0,0.00021675,2]
[343724443,1732926639018,-500.0,0.00021675,2]
[343724444,1732926639027,-500.0,0.00021675,2]
[343724446,1732926639039,-500.0,0.00021675,2]
[343724447,1732926639049,-500.0,0.00021675,2]
[343724448,1732926639058,-500.0,0.00021675,2]
[343724450,1732926639067,-500.0,0.00021675,2]
[343724452,1732926639076,-500.0,0.00021675,2]
[343724455,1732926639086,-500.0,0.00021675,2]
[343724457,1732926639094,-500.0,0.00021675,2]
[343724458,1732926639103,-37.04227921,0.00021675,2]
[343724477,1732926643703,-462.95772079,0.00021675,2]
[343724478,1732926643713,-619.15085734,0.00021675,2]
[343724479,1732926643723,-500.0,0.00021675,2]
[343724480,1732926643732,-500.0,0.00021675,2]
[343724481,1732926643742,-500.0,0.00021675,2]
[343724482,1732926643752,-500.0,0.00021675,2]
[343724483,1732926643761,-367.04903412,0.00021675,2]
[343724484,1732926643771,-500.0,0.00021675,2]
[343724485,1732926643780,-500.0,0.00021675,2]
[343724486,1732926643790,-500.0,0.00021675,2]
[343724487,1732926643799,-500.0,0.00021675,2]
[343724488,1732926643808,-500.0,0.00021675,2]
[343724489,1732926643819,-500.0,0.00021675,2]
[343724490,1732926643828,-327.81022641,0.00021675,2]
[343724491,1732926643838,-500.0,0.00021675,2]
[343724492,1732926643847,-500.0,0.00021675,2]
[343724493,1732926643856,-500.0,0.00021675,2]
[343724494,1732926643866,-500.0,0.00021675,2]
[343724495,1732926643875,-500.0,0.00021675,2]
[343724496,1732926643884,-500.0,0.00021675,2]
[343724497,1732926643894,-500.0,0.00021675,2]
[343724498,1732926643903,-500.0,0.00021675,2]
[343724499,1732926643912,-500.0,0.00021675,2]
[343724500,1732926643923,-500.0,0.00021675,2]
[343724501,1732926643932,-500.0,0.00021675,2]
[343724502,1732926643940,-500.0,0.00021675,2]
[343724503,1732926643950,-500.0,0.00021675,2]
[343724504,1732926643961,-500.0,0.00021675,2]
[343724505,1732926643973,-500.0,0.00021675,2]
[343724506,1732926643983,-500.0,0.00021675,2]
[343724507,1732926643992,-500.0,0.00021675,2]
[343724508,1732926644002,-345.19196135,0.00021675,2]
[343724509,1732926644011,-500.0,0.00021675,2]
[343724510,1732926644020,-500.0,0.00021675,2]
[343724511,1732926644030,-500.0,0.00021675,2]
[343724512,1732926644040,-500.0,0.00021675,2]
[343724513,1732926644050,-500.0,0.00021675,2]
[343724514,1732926644059,-500.0,0.00021675,2]
[343724515,1732926644068,-500.0,0.00021675,2]
[343724516,1732926644077,-500.0,0.00021675,2]
[343724517,1732926644096,-500.0,0.00021675,2]
[343724518,1732926644107,-500.0,0.00021675,2]
[343724519,1732926644118,-500.0,0.00021675,2]
[343724520,1732926644128,-300.0,0.00021675,2]
[343724521,1732926644137,-300.0,0.00021675,2]
[343724522,1732926644147,-1236.66001098,0.00021675,2]
[343724523,1732926644158,-3135.5326498,0.00021677,2]
[343724524,1732926644171,-1376.1236267,0.0002185,2]
[343724525,1732926644181,-180.1155199,0.00021956,2]
[343724526,1732926644190,-167.0,0.00022,2]
[343724527,1732926644200,-1581.67017898,0.00022028,2]
[343724545,1732926734331,192.6365942,0.00020755,2]
[343724546,1732926846535,-4281.05140017,0.00030386,60]
[343724547,1732926846560,-6609.80951072,0.00030386,60]
[343724548,1732926846584,-409.93390832,0.00030386,120]
[343724549,1732926846611,-11047.85598603,0.00030386,30]
[343724550,1732926846635,-21761.94496347,0.00030386,30]
[343724551,1732926846659,-187.0,0.00030386,30]
[343724552,1732926846683,-536.0,0.00030386,120]
[343724553,1732926846707,-988.0,0.00030386,120]
[343724554,1732926846731,-3000.0,0.00030386,113]
[343724555,1732926846756,-3000.0,0.00030386,111]
[343724556,1732926846781,-1718.51744864,0.00030386,120]
[343724557,1732926846803,-1255.32614956,0.00030386,120]
[343724558,1732926846827,-402.5868,0.00030386,120]
[343724559,1732926846854,-1418.46205043,0.00030386,32]
[343724560,1732926846878,-5584.61559757,0.00030386,120]
[343724561,1732926846903,-15012.02371877,0.00030386,30]
[343724562,1732926854283,1.29802835,0.0003,120]
[343724563,1732926854305,149.70197165,0.0003,120]
[343724564,1732926868377,1000001.0,0.00030386,29]
[343724565,1732926877817,1000001.0,0.00030386,29]
[343724566,1732926882224,1000002.0,0.00030386,29]
[343724567,1732926885027,1000003.0,0.00030386,29]
[343724568,1732926890723,1000005.0,0.00030386,29]
[343724569,1732926894428,1000006.0,0.00030386,29]
[343724570,1732926900092,1000007.0,0.00030386,29]
[343724571,1732926902847,1000008.0,0.00030386,29]
[343724572,1732926903174,500.0,0.0002202,120]
[343724573,1732926907833,308.03,0.00027767,120]
[343724574,1732926909753,1000009.0,0.00030386,29]
[343724575,1732926914007,1000010.0,0.00030386,29]
[343724587,1732926975256,107.50298835,0.0003,120]
[343724588,1732926975278,43.49701165,0.0003,120]
[343724590,1732927126846,183.594811,0.00013973,2]
[343724591,1732927152848,500.0,0.00030136,120]
[343724592,1732927153107,179.26959456,0.00030136,120]
[343724634,1732927413228,48.70331379,0.00030136,120]
[343724635,1732927430527,302.0,0.0003,120]
[343724636,1732927430548,302.0,0.0003,120]
[343724637,1732927484602,5000.0,0.00016001,2]
[343724638,1732927500516,5000.0,0.00016001,2]
[343724639,1732927501904,842.48,0.00010959,2]
[343724641,1732927512811,702.06,0.00010959,2]
[343724642,1732927517457,5000.0,0.00016001,2]
[343724643,1732927523428,585.05,0.00010959,2]
[343724644,1732927532605,5000.0,0.00016001,2]
[343724645,1732927534034,487.54,0.00010959,2]
[343724646,1732927544840,406.29,0.00010959,2]
[343724647,1732927547990,2619.62770788,0.00016001,2]
[343724649,1732927555644,338.57,0.00010959,2]
[343724650,1732927566297,282.14,0.00010959,2]
[343724652,1732927576867,235.12,0.00010959,2]
[343724653,1732927577501,-387.30726344,0.0003,120]
[343724654,1732927577606,-1065.23496,0.00030137,120]
[343724655,1732927577628,-7802.40721445,0.00030435,120]
[343724656,1732927577656,-150.0,0.00030657,120]
[343724657,1732927577677,-163.83021409,0.00031,120]
[343724658,1732927577699,-7750.57817357,0.00031,120]
[343724659,1732927587713,195.93,0.00010959,2]
[343724660,1732927598258,163.28,0.00010959,2]
[343724661,1732927608917,816.42,0.00010959,2]
[343724665,1732927619209,-311.24112471,0.00016037,2]
[343724668,1732927656386,5000.0,0.00016001,2]
[343724670,1732927672711,5000.0,0.00016001,2]
[343724671,1732927677134,204.278959,0.0001531,2]
[343724672,1732927688689,5000.0,0.00016001,2]
[343724673,1732927695034,881.1918162,0.0001531,2]
[343724674,1732927703911,4078.80362011,0.00016001,2]
[343724696,1732927754096,-194.45647284,0.00016011,2]
[343724697,1732927754117,-106.52016599,0.00016037,2]
[343724698,1732927754137,-300.0,0.00016111,2]
[343724699,1732927754159,-300.0,0.00016111,2]
[343724700,1732927754180,-9557.61276117,0.00016112,2]
[343724701,1732927784099,2584.738694,0.00015431,2]
[343724702,1732927792439,182.786438,0.00013973,2]
[343724703,1732927802455,504.0538845,0.00015431,2]
[343724704,1732927819922,786.8384539,0.0001543,2]
[343724730,1732927835108,-5581.85996397,0.00016112,2]
[343724735,1732927835334,-233.50341816,0.00016112,2]
[343724738,1732927835347,-1159.18503139,0.00016267,2]
[343724743,1732927835359,-176.04462811,0.00016267,2]
[343724746,1732927835369,-4067.53776467,0.0001633,2]
[343725052,1732927842743,-1421.11682138,0.0001633,2]
[343725054,1732927842753,-180.84668259,0.00016429,2]
[343725083,1732927843015,-119.15331741,0.00016429,2]
[343725085,1732927843024,-300.0,0.00016429,2]
[343725087,1732927843034,-999.10080927,0.00016429,2]
[343725088,1732927843043,-181.32827918,0.00016429,2]
[343725090,1732927843053,-268.98226372,0.00016429,2]
[343725093,1732927843063,-247.20229539,0.00016429,2]
[343725095,1732927843073,-500.0,0.00016429,2]
[343725096,1732927843083,-538.92658058,0.00016429,2]
[343725098,1732927843093,-500.0,0.00016429,2]
[343725100,1732927843103,-297.90882959,0.00016429,2]
[343725102,1732927843112,-500.0,0.00016429,2]
[343725103,1732927843122,-199.93111588,0.00016429,2]
[343725105,1732927843131,-500.0,0.00016429,2]
[343725107,1732927843140,-500.0,0.00016429,2]
[343725108,1732927843150,-500.0,0.00016429,2]
[343725109,1732927843159,-500.0,0.00016429,2]
[343725110,1732927843168,-500.0,0.00016429,2]
[343725111,1732927843178,-500.0,0.00016429,2]
[343725112,1732927843187,-500.0,0.00016429,2]
[343725113,1732927843197,-500.0,0.00016429,2]
[343725114,1732927843206,-500.0,0.00016429,2]
[343725115,1732927843216,-500.0,0.00016429,2]
[343725116,1732927843226,-500.0,0.00016429,2]
[343725117,1732927843236,-338.15300424,0.00016429,2]
[343725118,1732927843245,-500.0,0.00016429,2]
[343725119,1732927843254,-500.0,0.00016429,2]
[343725120,1732927843264,-500.0,0.00016429,2]
[343725121,1732927843274,-500.0,0.00016429,2]
[343725122,1732927843283,-500.0,0.00016429,2]
[343725123,1732927843293,-500.0,0.00016429,2]
[343725124,1732927843303,-572.05579638,0.00016429,2]
[343725125,1732927843312,-500.0,0.00016429,2]
[343725126,1732927843321,-500.0,0.00016429,2]
[343725127,1732927843333,-500.0,0.00016429,2]
[343725128,1732927843346,-500.0,0.00016429,2]
[343725130,1732927843356,-500.0,0.00016429,2]
[343725132,1732927843365,-500.0,0.00016429,2]
[343725134,1732927843375,-500.0,0.00016429,2]
[343725136,1732927843384,-500.0,0.00016429,2]
[343725138,1732927843393,-558.47132066,0.00016429,2]
[343725140,1732927843402,-500.0,0.00016429,2]
[343725141,1732927843412,-500.0,0.00016429,2]
[343725143,1732927843421,-500.0,0.00016429,2]
[343725145,1732927843431,-500.0,0.00016429,2]
[343725147,1732927843440,-500.0,0.00016429,2]
[343725148,1732927843450,-500.0,0.00016429,2]
[343725149,1732927843459,-500.0,0.00016429,2]
[343725150,1732927843469,-500.0,0.00016429,2]
[343725151,1732927843479,-500.0,0.00016429,2]
[343725152,1732927843488,-500.0,0.00016429,2]
[343725153,1732927843498,-500.0,0.00016429,2]
[343725154,1732927843508,-500.0,0.00016429,2]
[343725155,1732927843517,-500.0,0.00016429,2]
[343725156,1732927843527,-500.0,0.00016429,2]
[343725157,1732927843538,-500.0,0.00016429,2]
[343725158,1732927843547,-500.0,0.00016429,2]
[343725159,1732927843556,-500.0,0.00016429,2]
[343725160,1732927843566,-500.0,0.00016429,2]
[343725161,1732927843575,-500.0,0.00016429,2]
[343725162,1732927843586,-500.0,0.00016429,2]
[343725163,1732927843595,-500.0,0.00016429,2]
[343725164,1732927843605,-500.0,0.00016429,2]
[343725165,1732927843613,-500.0,0.00016429,2]
[343725166,1732927843623,-550.0,0.00016429,2]
[343725167,1732927843632,-500.0,0.00016429,2]
[343725168,1732927843641,-500.0,0.00016429,2]
[343725169,1732927843651,-500.0,0.00016429,2]
[343725170,1732927843660,-500.0,0.00016429,2]
[343725171,1732927843670,-500.0,0.00016429,2]
[343725172,1732927843679,-299.87990461,0.00016429,2]
[343725173,1732927843688,-2070.5327661,0.0001643,2]
[343725174,1732927843699,-188.659565,0.0001643,2]
[343725175,1732927843708,-998.90120867,0.0001643,2]
[343725176,1732927843717,-624.09837678,0.0001643,2]
[343725177,1732927843727,-151.0,0.00016431,2]
[343725178,1732927843736,-151.0,0.00016431,2]
[343725179,1732927843746,-151.0,0.00016431,2]
[343725180,1732927843755,-151.0,0.00016432,2]
[343725181,1732927843765,-19137.4542309,0.00016432,2]
[343725182,1732927843775,-500.0,0.00016438,2]
[343725183,1732927843785,-500.0,0.00016438,2]
[343725184,1732927843795,-500.0,0.00016438,2]
[343725185,1732927843804,-500.0,0.00016438,2]
[343725186,1732927843814,-500.0,0.00016438,2]
[343725187,1732927843823,-500.0,0.00016438,2]
[343725188,1732927843835,-500.0,0.00016438,2]
[343725189,1732927843844,-609.38333876,0.00016438,2]
[343725190,1732927843853,-500.0,0.00016473,2]
[343725191,1732927843862,-500.0,0.00016473,2]
[343725192,1732927843871,-160.16144597,0.00016473,2]
[343725193,1732927843881,-500.0,0.00016473,2]
[343725194,1732927843890,-162.44119268,0.00016473,2]
[343725195,1732927843899,-160.16766428,0.00016473,2]
[343725196,1732927843909,-500.0,0.00016473,2]
[343725197,1732927843918,-187.96646987,0.00016473,2]
[343725198,1732927843927,-160.0,0.00016473,2]
[343725199,1732927843936,-441.29469664,0.00016473,2]
[343725200,1732927843945,-500.0,0.00016473,2]
[343725201,1732927843954,-432.94576623,0.00016473,2]
[343725202,1732927843964,-500.0,0.00016473,2]
[343725203,1732927843974,-161.05067349,0.00016473,2]
[343725204,1732927843983,-158.66741536,0.00016473,2]
[343725205,1732927843993,-152.0,0.00016676,2]
[343725206,1732927844003,-406.82257977,0.00017021,2]
[343725207,1732927844012,-1000.0,0.00017021,2]
[343725208,1732927844021,-515.60236325,0.00017021,2]
[343725209,1732927844030,-500.0,0.00017021,2]
[343725210,1732927844040,-250.0,0.00017049,2]
[343725211,1732927844049,-192.0,0.00017051,2]
[343725212,1732927844058,-911.5362975,0.00017123,2]
[343725213,1732927844068,-163.10200991,0.00017273,2]
[343725214,1732927844077,-500.0,0.00017273,2]
[343725215,1732927844087,-500.0,0.00017273,2]
[343725216,1732927844095,-303.23377872,0.00017273,2]
[343725217,1732927844105,-500.0,0.00017273,2]
[343725218,1732927844114,-151.0,0.0001729,2]
[343725219,1732927844125,-151.0,0.0001729,2]
[343725220,1732927844134,-151.0,0.0001729,2]
[343725221,1732927844143,-188.674696,0.0001729,2]
[343725223,1732927844152,-2772.428016,0.00017291,2]
[343725225,1732927844161,-42538.9131618,0.00017291,2]
[343725226,1732927844171,-151.0,0.00017291,2]
[343725227,1732927844180,-151.0,0.00017291,2]
[343725228,1732927844190,-151.0,0.00017291,2]
[343725229,1732927844200,-182.0,0.00017435,2]
[343725230,1732927844209,-1139.00338231,0.00017512,2]
[343725231,1732927844218,-1089.9745132,0.00017531,2]
[343725232,1732927844228,-6013.0500693,0.00017718,2]
[343725233,1732927844237,-500.0,0.00017821,2]
[343725234,1732927844246,-525.26050193,0.00017821,2]
[343725235,1732927844256,-420.0,0.00017955,2]
[343725236,1732927844265,-1500.0,0.00018022,2]
[343725237,1732927844275,-420.0,0.00018072,2]
[343725238,1732927844285,-5488.65458605,0.00018341,2]
[343725239,1732927844294,-182.09,0.00018462,2]
[343725240,1732927844303,-151.0,0.00018548,2]
[343725241,1732927844313,-580.92957367,0.0001863,2]
[343725242,1732927844323,-151.0,0.00018632,2]
[343725245,1732927844335,-151.0,0.00018634,2]
[343725246,1732927844347,-174.640108,0.00018634,2]
[343725249,1732927844356,-24900.0,0.00018634,2]
[343725251,1732927844367,-182.09,0.00018648,2]
[343725252,1732927844376,-151.0,0.00018658,2]
[343725254,1732927844387,-151.0,0.00018658,2]
[343725255,1732927844396,-284.956299,0.00018658,2]
[343725256,1732927844405,-500.0,0.00018673,2]
[343725257,1732927844416,-466.89794477,0.00018673,2]
[343725258,1732927844425,-390.76468723,0.00018673,2]
[343725259,1732927844435,-500.0,0.00018673,2]
[343725260,1732927844443,-500.0,0.00018673,2]
[343725261,1732927844453,-500.0,0.00018673,2]
[343725262,1732927844462,-250.0,0.00018732,2]
[343725263,1732927844471,-1139.00338227,0.0001915,2]
[343725264,1732927844480,-151.0,0.00019178,2]
[343725265,1732927844489,-5000.0,0.00019178,2]
[343725266,1732927844499,-5000.0,0.00019178,2]
[343725267,1732927844508,-5000.0,0.00019178,2]
[343725268,1732927844517,-12641.0129914,0.00019178,11]
[343725269,1732927844527,-168.68058,0.00019178,2]
[343725270,1732927844536,-420.55066122,0.00019221,2]
[343725271,1732927844546,-1000.0,0.00019221,2]
[343725272,1732927844555,-500.26757662,0.00019221,2]
[343725273,1732927844565,-1017.51106899,0.0001932,2]
[343725274,1732927844574,-587.0,0.00019622,2]
[343725275,1732927844584,-151.0,0.00019624,2]
[343725276,1732927844593,-587.0,0.00019879,2]
[343725277,1732927844603,-500.0,0.00019973,2]
[343725278,1732927844611,-500.4034591,0.00019973,2]
[343725279,1732927844620,-502.7754537,0.00019973,2]
[343725280,1732927844630,-500.0,0.00019973,2]
[343725281,1732927844639,-160.26423071,0.00019973,2]
[343725282,1732927844648,-500.0,0.00019973,2]
[343725283,1732927844656,-500.0,0.00019973,2]
[343725284,1732927844666,-160.16649663,0.00019973,2]
[343725285,1732927844675,-510.64669598,0.00019973,2]
[343725286,1732927844685,-321.81617021,0.00019973,2]
[343725287,1732927844694,-500.0,0.00019973,2]
[343725288,1732927844703,-151.0,0.00019998,2]
[343725289,1732927844713,-151.0,0.00019999,2]
[343725290,1732927844723,-151.0,0.00019999,2]
[343725291,1732927844732,-5000.0,0.00019999,2]
[343725292,1732927844742,-5000.0,0.00019999,2]
[343725293,1732927844751,-5000.0,0.00019999,2]
[343725294,1732927844760,-5000.0,0.00019999,2]
[343725295,1732927844770,-5000.0,0.00019999,2]
[343725296,1732927844779,-5000.0,0.00019999,2]
[343725297,1732927844788,-5000.0,0.00019999,2]
[343725298,1732927844797,-5000.0,0.00019999,2]
[343725299,1732927844807,-5000.0,0.00019999,2]
[343725300,1732927844816,-5000.0,0.00019999,2]
[343725301,1732927844825,-5000.0,0.00019999,2]
[343725302,1732927844838,-5000.0,0.00019999,2]
[343725303,1732927844847,-1482.32681157,0.00019999,2]
[343725304,1732927844857,-3940.0,0.0002,2]
[343725305,1732927844866,-1970.0,0.0002,2]
[343725306,1732927844875,-1970.0,0.0002,2]
[343725307,1732927844885,-1970.0,0.0002,2]
[343725308,1732927844894,-1970.0,0.0002,2]
[343725309,1732927844904,-29230.14546767,0.0002,2]
[343725310,1732927845068,208.3685558,0.0001543,2]
[343725338,1732927934164,151.0,0.0003,120]
[343725339,1732928039326,849.20082,0.00030137,120]
[343725340,1732928064689,262.14,0.00010959,2]
[343725342,1732928182406,409.6081729,0.0001543,2]
[343725343,1732928202552,1100.0,0.000304,120]
[343725344,1732928251962,218.45,0.00010959,2]
[343725346,1732928262529,182.04,0.00010959,2]
[343725347,1732928273089,151.7,0.00010959,2]
[343725348,1732928283710,758.55,0.00010959,2]
[343725350,1732928317737,500.0,0.00030136,120]
[343725351,1732928375183,1292.369347,0.00015428,2]
[343725352,1732928437168,248.3030805,0.00015556,2]
[343725353,1732928519859,173.647116,0.00013973,2]
[343725355,1732928599611,250.0,0.0001543,2]
[343725356,1732928609911,24900.0,0.00015429,2]
[343725357,1732928657985,636.900615,0.00030137,120]
[343725358,1732928664742,12498.653334,0.00015553,2]